Workbook

Sheet template
A1: Input variables | B1: Phase 2 | C1: Phase 4
A2: Arrival rate, v | D2: veh/hr
A3: Proportion vehicles arriving on green, Pgreen
A4: Headway of bunched vehicles, Δ | D4: veh/sec
A5: Bunching factor, b
A6: Lost time, l1 | D6: sec
A7: Passage time, PT | D7: sec
A8: Detection zone length, Lds | D8: feet
A9: Vehicle length, Lv | D9: feet
A10: Speed, Sa | D10: mi/hr
A11: Maximum green, Gmax | D11: sec
A12: Minimum green, Gmin | D12: sec
A13: Yellow time, Y | D13: sec
A14: Red clearance, Rc | D14: sec
A15: Saturation flow rate, s | D15: veh/hr/green
A17: Calculated variables | B17: Phase 2 | C17: Phase 4
A18: Arrival rate, q | D18: veh/sec
A19: Arrival rate during red, qr | D19: veh/sec
A20: Arrival rate during green, qg | D20: veh/sec
A21: Proportion of free vehicles, ϕ
A22: Flow rate parameter, λ | D22: veh/sec
A23: Queue at end of red, QueueRed | D23: veh
A24: Queue service time, gs | D24: sec
A25: Number of extension before max out, n
A26: ProbSubjectPhaseCalled, pv
A27: Maximum allowable headway, MAH | D27: sec
A28: ProbGreenExtension, pge
A29: Green extension, ge | D29: sec
A30: Effective change interval, Y + Rc | D30: sec
A31: Average green interval duration, Green | D31: sec
A32: Phase duration, Dp | D32: sec
A34: Final values | B34: Phase 2 | C34: Phase 4
A35: Cycle length, C | D35: sec
A36: Effective green, g | D36: sec
A37: Effective red, r | D37: sec
A38: Displayed green, G | D38: sec
A39: Displayed red, R | D39: sec
A40: Displayed yellow, Y | D40: sec

Sheet green time prediction ex 21
A1: Input variables | B1: Phase 2 | C1: Phase 4 | F1: Queue Accumulation Polygon (QAP)
A2: Arrival rate, v | B2: 700 | C2: 700 | D2: veh/hr
A3: Proportion vehicles arriving on green, Pgreen | B3: 0.75 | C3: 0.75 | G3: Phase 2 | I3: Phase 4
A4: Headway of bunched vehicles, Δ | B4: 1.5 | C4: 1.5 | D4: veh/sec | F4: Points on QAP | G4: Queue | H4: Time | I4: Queue | J4: Time
A5: Bunching factor, b | B5: 0.6 | C5: 0.6 | F5: Origin | G5: 0 | H5: 0 | I5: 0 | J5: =B37 -> 34.33947288
A6: Lost time, l1 | B6: 2 | C6: 2 | D6: sec | F6: Maximum queue | G6: =B23 -> 2.854370488 | H6: =B37 -> 34.33947288 | I6: =C23 -> 2.854370488 | J6: =J5+C37 -> 68.67894576
A7: Passage time, PT | B7: 2.5 | C7: 2.5 | D7: sec | F7: Queue at end of green | G7: =G27 -> 8.881784197e-16 | H7: =H6+B24+B29 -> 56.67894576 | I7: =I27 -> 8.881784197e-16 | J7: =J6+C24+C29 -> 91.01841864
A8: Detection zone length, Lds | B8: 22 | C8: 22 | D8: feet
A9: Vehicle length, Lv | B9: 20 | C9: 20 | D9: feet | F9: Display indications | G9: Queue | H9: Time | I9: Queue | J9: Time
A10: Speed, Sa | B10: 30 | C10: 30 | D10: mi/hr | F10: Red start | G10: 0.2 | H10: 0 | I10: 0.2 | J10: =J5 -> 34.33947288
A11: Maximum green, Gmax | B11: 50 | C11: 50 | D11: sec | F11: Red end | G11: 0.2 | H11: =B39-B14 -> 29.33974065 | I11: 0.2 | J11: =J10+C39 -> 65.67921353
A12: Minimum green, Gmin | B12: 5 | C12: 5 | D12: sec | F12: Green start | G12: 0.2 | H12: =H11 -> 29.33974065 | I12: 0.2 | J12: =J11 -> 65.67921353
A13: Yellow time, Y | B13: 3 | C13: 3 | D13: sec | F13: Green end | G13: 0.2 | H13: =H12+B38 -> 53.67894576 | I13: 0.2 | J13: =J12+C38 -> 90.01841864
A14: Red clearance, Rc | B14: 2 | C14: 2 | D14: sec | F14: Yellow start | G14: 0.2 | H14: =H13 -> 53.67894576
A15: Saturation flow rate, s | B15: 1900 | C15: 1900 | D15: veh/hr/green | F15: Yellow end | G15: 0.2 | H15: =H14+B13 -> 56.67894576
F16: Red clear start | G16: 0.2 | H16: =H15 -> 56.67894576
A17: Calculated variables | B17: Phase 2 | C17: Phase 4 | F17: Red clear end | G17: 0.2 | H17: =H16+B14 -> 58.67894576 | S17: 1 | U17: 0
A18: Arrival rate, q | B18: 0.1944444444 | C18: 0.1944444444 | D18: veh/sec
A19: Arrival rate during red, qr | B19: 0.08307432137 | C19: 0.08307432137 | D19: veh/sec
A20: Arrival rate during green, qg | B20: 0.3515344365 | C20: 0.3515344365 | D20: veh/sec | F20: Capacity calculation
A21: Proportion of free vehicles, ϕ | B21: 0.8394570208 | C21: 0.8394570208 | F21: Effective green, g | G21: =B36 -> 24.33947288 | I21: =C36 -> 24.33947288
A22: Flow rate parameter, λ | B22: 0.2304391822 | C22: 0.2304391822 | D22: veh/sec | F22: Cycle length, C | G22: =B35 -> 58.67894576 | I22: =C35 -> 58.67894576
A23: Queue at end of red, QueueRed | B23: 2.854370488 | C23: 2.854370488 | D23: veh | F23: Saturation flow rate, s | G23: =B15 -> 1900 | I23: =C15 -> 1900
A24: Queue service time, gs | B24: 16.19562174 | C24: 16.19562174 | D24: sec | F24: Capacity, c | G24: =(G21/G22)*G23 -> 788.1020675 | I24: =(I21/I22)*I23 -> 788.1020675
A25: Number of extension before max out, n | B25: 11.18033419 | C25: 11.18033419 | F25: Arrival rate, v | G25: =B2 -> 700 | I25: =C2 -> 700
A26: ProbSubjectPhaseCalled, pv | B26: 0.9999889985 | C26: 0.9999889985 | F26: Degree of saturation | G26: =G25/G24 -> 0.8882098257 | I26: =I25/I24 -> 0.8882098257
A27: Maximum allowable headway, MAH | B27: 3.452380952 | C27: 3.452380952 | D27: sec | F27: Queue at end of green | G27: =QueueAtEndOfGreen(B23,B15,B20,B11,B24,B29,B6) -> 8.881784197e-16 | I27: =QueueAtEndOfGreen(C23,C15,C20,C11,C24,C29,C6) -> 8.881784197e-16
A28: ProbGreenExtension, pge | B28: 0.4646877567 | C28: 0.4646877567 | F28: Uniform delay, sec/veh | G28: =UniformDelay(B2,B37,B24,B23,G27,B29,G22) -> 7.089641398 | I28: =UniformDelay(C2,C37,C24,C23,I27,C29,I22) -> 7.089641398
A29: Green extension, ge | B29: 6.143851142 | C29: 6.143851142 | D29: sec
A30: Effective change interval, Y + Rc | B30: 5 | C30: 5 | D30: sec | F30: Time calculations | G30: Y-axis | H30: X-axis | I30: Y-axis | J30: X-axis
A31: Average green interval duration, Green | B31: 24.33920511 | C31: 24.33920511 | D31: sec | F31: Red and Phase Duration
A32: Phase duration, Dp | B32: 29.33947288 | C32: 29.33947288 | D32: sec | F32: Red display | G32: 3 | H32: 0 | I32: 3
G33: 3 | H33: =H32+B39-B14 -> 29.33974065 | I33: 3
A34: Final values | B34: Phase 2 | C34: Phase 4 | F34: Green display | G34: 3 | H34: =H33 -> 29.33974065 | I34: 3
A35: Cycle length, C | B35: 58.67894576 | C35: 58.67894576 | D35: sec | G35: 3 | H35: =H34+B38 -> 53.67894576 | I35: 3
A36: Effective green, g | B36: 24.33947288 | C36: 24.33947288 | D36: sec | F36: Yellow display | G36: 3 | H36: =H35 -> 53.67894576
A37: Effective red, r | B37: 34.33947288 | C37: 34.33947288 | D37: sec | G37: 3 | H37: =H36+B13 -> 56.67894576
A38: Displayed green, G | B38: 24.33920511 | C38: 24.33920511 | D38: sec | F38: Red clearance display | G38: 3 | H38: =H37 -> 56.67894576
A39: Displayed red, R | B39: 31.33974065 | C39: 31.33974065 | D39: sec | G39: 3 | H39: =H38+B14 -> 58.67894576
A40: Displayed yellow, Y | B40: 3 | C40: 3 | D40: sec | F40: Cycle length | G40: 4 | H40: 0
G41: 4 | H41: =B35 -> 58.67894576
F42: Phase duration | G42: 3.2 | H42: =H34 -> 29.33974065
A43: Intermediate values/iteration number | B43: Green2 | C43: Green4 | D43: Cycle | G43: 3.2 | H43: =H39 -> 58.67894576
A44: 1 | B44: 29.5291314 | C44: 29.5291314 | D44: 69.05826302
A45: 2 | B45: 26.2286677 | C45: 26.2286677 | D45: 62.45741268 | F45: Effective times
A46: 3 | B46: 25.01114784 | C46: 25.01114784 | D46: 60.02256167 | F46: Effective red1 | G46: 2 | H46: 0
A47: 4 | B47: 24.57161774 | C47: 24.57161774 | D47: 59.14365504 | G47: 2 | H47: =H46+B37 -> 34.33947288
A48: 5 | B48: 24.4147225 | C48: 24.4147225 | D48: 58.82993957 | F48: Effective green | G48: 2 | H48: =H47 -> 34.33947288
A49: 6 | B49: 24.35897707 | C49: 24.35897707 | D49: 58.71847862 | G49: 2 | H49: =H48+B36 -> 58.67894576
A50: 7 | B50: 24.33920511 | C50: 24.33920511 | D50: 58.67894576 | F50: Effective red2 | G50: 2 | H50: =H49 -> 58.67894576
G51: 2 | H51: =H50+B13+B14-2 -> 61.67894576
F53: Phase duration components
F54: Lost time, l1 | G54: 1 | H54: =B39 -> 31.33974065
E55: 5 | G55: 1 | H55: =H54+B6 -> 33.33974065
F56: Green service time, gs | G56: 1 | H56: =H55 -> 33.33974065
G57: 1 | H57: =H56+B24 -> 49.53536239
F58: Green extension time, ge | G58: 1 | H58: =H57 -> 49.53536239
G59: 1 | H59: =H58+B29 -> 55.67921353
F60: Y+Rc | G60: 1 | H60: =H59 -> 55.67921353
G61: 1 | H61: =H60+B13+B14 -> 60.67921353

Sheet green time prediction ex calc27
A1: Input variables | B1: Phase 2 | C1: Phase 4 | F1: Queue Accumulation Polygon (QAP)
A2: Arrival rate, v | B2: 800 | C2: 100 | D2: veh/hr
A3: Proportion vehicles arriving on green, Pgreen | B3: 0.5 | C3: 0.5 | G3: Phase 2 | I3: Phase 4
A4: Headway of bunched vehicles, Δ | B4: 1.5 | C4: 1.5 | D4: veh/sec | F4: Points on QAP | G4: Queue | H4: Time | I4: Queue | J4: Time
A5: Bunching factor, b | B5: 0.6 | C5: 0.6 | F5: Origin | G5: 0 | H5: 0 | I5: 0 | J5: =B37 -> 21.08708121
A6: Lost time, l1 | B6: 2 | C6: 2 | D6: sec | F6: Maximum queue | G6: =B23 -> 4.45522741 | H6: =B37 -> 21.08708121 | I6: =C23 -> 0.5569034263 | J6: =J5+C37 -> 50.29290552
A7: Passage time, PT | B7: 2.5 | C7: 2.5 | D7: sec | F7: Queue at end of green | G7: =G27 -> 0 | H7: =H6+B24+B29 -> 38.29290552 | I7: =I27 -> 0 | J7: =J6+C24+C29 -> 59.37998672
A8: Detection zone length, Lds | B8: 22 | C8: 22 | D8: feet
A9: Vehicle length, Lv | B9: 20 | C9: 20 | D9: feet | F9: Display indications | G9: Queue | H9: Time | I9: Queue | J9: Time
A10: Speed, Sa | B10: 30 | C10: 30 | D10: mi/hr | F10: Red start | G10: 0.2 | H10: 0 | I10: 0.2 | J10: =J5 -> 21.08708121
A11: Maximum green, Gmax | B11: 50 | C11: 50 | D11: sec | F11: Red end | G11: 0.2 | H11: =B39-B14 -> 16.08967343 | I11: 0.2 | J11: =J10+C39 -> 50.93286927
A12: Minimum green, Gmin | B12: 5 | C12: 5 | D12: sec | F12: Green start | G12: 0.2 | H12: =H11 -> 16.08967343 | I12: 0.2 | J12: =J11 -> 50.93286927
A13: Yellow time, Y | B13: 3 | C13: 3 | D13: sec | F13: Green end | G13: 0.2 | H13: =H12+B38 -> 35.29290552 | I13: 0.2 | J13: =J12+C38 -> 58.37998672
A14: Red clearance, Rc | B14: 2 | C14: 2 | D14: sec | F14: Yellow start | G14: 0.2 | H14: =H13 -> 35.29290552
A15: Saturation flow rate, s | B15: 1900 | C15: 1900 | D15: veh/hr/green | F15: Yellow end | G15: 0.2 | H15: =H14+B13 -> 38.29290552
F16: Red clear start | G16: 0.2 | H16: =H15 -> 38.29290552
A17: Calculated variables | B17: Phase 2 | C17: Phase 4 | F17: Red clear end | G17: 0.2 | H17: =H16+B14 -> 40.29290552 | S17: 1 | U17: 0
A18: Arrival rate, q | B18: 0.2222222222 | C18: 0.02777777778 | D18: veh/sec
A19: Arrival rate during red, qr | B19: 0.213261684 | C19: 0.01906801789 | D19: veh/sec
A20: Arrival rate during green, qg | B20: 0.2319687693 | C20: 0.05113477222 | D20: veh/sec | F20: Capacity calculation
A21: Proportion of free vehicles, ϕ | B21: 0.8187307531 | C21: 0.975309912 | F21: Effective green, g | G21: =B36 -> 19.20582431 | I21: =C36 -> 11.08708121
A22: Flow rate parameter, λ | B22: 0.272910251 | C22: 0.02826985252 | D22: veh/sec | F22: Cycle length, C | G22: =B35 -> 40.29290552 | I22: =C35 -> 40.29290552
A23: Queue at end of red, QueueRed | B23: 4.45522741 | C23: 0.5569034263 | D23: veh | F23: Saturation flow rate, s | G23: =B15 -> 1900 | I23: =C15 -> 1900
A24: Queue service time, gs | B24: 15.06116204 | C24: 1.168386863 | D24: sec | F24: Capacity, c | G24: =(G21/G22)*G23 -> 905.6449446 | I24: =(I21/I22)*I23 -> 522.8080236
A25: Number of extension before max out, n | B25: 7.640781703 | C25: 2.394723871 | F25: Arrival rate, v | G25: =B2 -> 800 | I25: =C2 -> 100
A26: ProbSubjectPhaseCalled, pv | B26: 0.9998650296 | C26: 0.6716932363 | F26: Degree of saturation | G26: =G25/G24 -> 0.8833483859 | I26: =I25/I24 -> 0.1912747997
A27: Maximum allowable headway, MAH | B27: 3.452380952 | C27: 3.452380952 | D27: sec | F27: Queue at end of green | G27: =QueueAtEndOfGreen(B23,B15,B20,B11,B24,B29,B6) -> 0 | I27: =QueueAtEndOfGreen(C23,C15,C20,C11,C24,C29,C6) -> 0
A28: ProbGreenExtension, pge | B28: 0.5194503739 | C28: 0.07706227927 | F28: Uniform delay, sec/veh | G28: =UniformDelay(B2,B37,B24,B23,G27,B29,G22) -> 8.993132778 | I28: =UniformDelay(C2,C37,C24,C23,I27,C29,I22) -> 7.556641473
A29: Green extension, ge | B29: 2.144662267 | C29: 7.918694345 | D29: sec
A30: Effective change interval, Y + Rc | B30: 5 | C30: 5 | D30: sec | F30: Time calculations | G30: Y-axis | H30: X-axis | I30: Y-axis | J30: X-axis
A31: Average green interval duration, Green | B31: 19.20323209 | C31: 7.447117458 | D31: sec | F31: Red and Phase Duration
A32: Phase duration, Dp | B32: 24.20582431 | C32: 16.08708121 | D32: sec | F32: Red display | G32: 3 | H32: 0 | I32: 3
G33: 3 | H33: =H32+B39-B14 -> 16.08967343 | I33: 3
A34: Final values | B34: Phase 2 | C34: Phase 4 | F34: Green display | G34: 3 | H34: =H33 -> 16.08967343 | I34: 3
A35: Cycle length, C | B35: 40.29290552 | C35: 40.29290552 | D35: sec | G35: 3 | H35: =H34+B38 -> 35.29290552 | I35: 3
A36: Effective green, g | B36: 19.20582431 | C36: 11.08708121 | D36: sec | F36: Yellow display | G36: 3 | H36: =H35 -> 35.29290552
A37: Effective red, r | B37: 21.08708121 | C37: 29.20582431 | D37: sec | G37: 3 | H37: =H36+B13 -> 38.29290552
A38: Displayed green, G | B38: 19.20323209 | C38: 7.447117458 | D38: sec | F38: Red clearance display | G38: 3 | H38: =H37 -> 38.29290552
A39: Displayed red, R | B39: 18.08967343 | C39: 29.84578806 | D39: sec | G39: 3 | H39: =H38+B14 -> 40.29290552
A40: Displayed yellow, Y | B40: 3 | C40: 3 | D40: sec | F40: Cycle length | G40: 4 | H40: 0
G41: 4 | H41: =B35 -> 40.29290552
F42: Phase duration | G42: 3.2 | H42: =H34 -> 16.08967343
A43: Intermediate values/iteration number | B43: Green2 | C43: Green4 | D43: Cycle | G43: 3.2 | H43: =H39 -> 40.29290552
A44: 1 | B44: 40.2388692 | C44: 14.29432629 | D44: 65.48089146
A45: 2 | B45: 25.64121844 | C45: 9.278859169 | D45: 46.71652293 | F45: Effective times
A46: 3 | B46: 20.39645717 | C46: 7.727783919 | D46: 41.02918393 | F46: Effective red1 | G46: 2 | H46: 0
A47: 4 | B47: 19.2040446 | C47: 7.40673285 | D47: 40.09704669 | G47: 2 | H47: =H46+B37 -> 21.08708121
A48: 5 | B48: 19.20323209 | C48: 7.447117458 | D48: 40.29290552 | F48: Effective green | G48: 2 | H48: =H47 -> 21.08708121
G49: 2 | H49: =H48+B36 -> 40.29290552
F50: Effective red2 | G50: 2 | H50: =H49 -> 40.29290552
G51: 2 | H51: =H50+B13+B14-2 -> 43.29290552
F53: Phase duration components
F54: Lost time, l1 | G54: 1 | H54: =B39 -> 18.08967343
E55: 5 | G55: 1 | H55: =H54+B6 -> 20.08967343
F56: Green service time, gs | G56: 1 | H56: =H55 -> 20.08967343
G57: 1 | H57: =H56+B24 -> 35.15083547
F58: Green extension time, ge | G58: 1 | H58: =H57 -> 35.15083547
G59: 1 | H59: =H58+B29 -> 37.29549773
F60: Y+Rc | G60: 1 | H60: =H59 -> 37.29549773
G61: 1 | H61: =H60+B13+B14 -> 42.29549773

Sheet green time prediction ex calc28
A1: Input variables | B1: Phase 2 | C1: Phase 4 | F1: Queue Accumulation Polygon (QAP)
A2: Arrival rate, v | B2: 1050 | C2: 400 | D2: veh/hr
A3: Proportion vehicles arriving on green, Pgreen | B3: 0.5 | C3: 0.5 | G3: Phase 2 | I3: Phase 4
A4: Headway of bunched vehicles, Δ | B4: 1.5 | C4: 1.5 | D4: veh/sec | F4: Points on QAP | G4: Queue | H4: Time | I4: Queue | J4: Time
A5: Bunching factor, b | B5: 0.6 | C5: 0.6 | F5: Origin | G5: 0 | H5: 0 | I5: 0 | J5: =B37 -> 25.39277055
A6: Lost time, l1 | B6: 2 | C6: 2 | D6: sec | F6: Maximum queue | G6: =B23 -> 8.959637394 | H6: =B37 -> 25.39277055 | I6: =C23 -> 3.413195198 | J6: =J5+C37 -> 71.37785089
A7: Passage time, PT | B7: 2.5 | C7: 2.5 | D7: sec | F7: Queue at end of green | G7: =G27 -> 0 | H7: =H6+B24+B29 -> 59.37785089 | I7: =I27 -> 0 | J7: =J6+C24+C29 -> 84.77062144
A8: Detection zone length, Lds | B8: 22 | C8: 22 | D8: feet
A9: Vehicle length, Lv | B9: 20 | C9: 20 | D9: feet | F9: Display indications | G9: Queue | H9: Time | I9: Queue | J9: Time
A10: Speed, Sa | B10: 30 | C10: 30 | D10: mi/hr | F10: Red start | G10: 0.2 | H10: 0 | I10: 0.2 | J10: =J5 -> 25.39277055
A11: Maximum green, Gmax | B11: 50 | C11: 50 | D11: sec | F11: Red end | G11: 0.2 | H11: =B39-B14 -> 20.39277115 | I11: 0.2 | J11: =J10+C39 -> 68.39454845
A12: Minimum green, Gmin | B12: 5 | C12: 5 | D12: sec | F12: Green start | G12: 0.2 | H12: =H11 -> 20.39277115 | I12: 0.2 | J12: =J11 -> 68.39454845
A13: Yellow time, Y | B13: 3 | C13: 3 | D13: sec | F13: Green end | G13: 0.2 | H13: =H12+B38 -> 56.37785089 | I13: 0.2 | J13: =J12+C38 -> 83.77062144
A14: Red clearance, Rc | B14: 2 | C14: 2 | D14: sec | F14: Yellow start | G14: 0.2 | H14: =H13 -> 56.37785089
A15: Saturation flow rate, s | B15: 1900 | C15: 1900 | D15: veh/hr/green | F15: Yellow end | G15: 0.2 | H15: =H14+B13 -> 59.37785089
F16: Red clear start | G16: 0.2 | H16: =H15 -> 59.37785089
A17: Calculated variables | B17: Phase 2 | C17: Phase 4 | F17: Red clear end | G17: 0.2 | H17: =H16+B14 -> 61.37785089 | S17: 1 | U17: 0
A18: Arrival rate, q | B18: 0.2916666667 | C18: 0.1111111111 | D18: veh/sec
A19: Arrival rate during red, qr | B19: 0.3525806865 | C19: 0.07415811045 | D19: veh/sec
A20: Arrival rate during green, qg | B20: 0.2486997584 | C20: 0.2214693115 | D20: veh/sec | F20: Capacity calculation
A21: Proportion of free vehicles, ϕ | B21: 0.7691263644 | C21: 0.904837418 | F21: Effective green, g | G21: =B36 -> 35.98508033 | I21: =C36 -> 15.39277055
A22: Flow rate parameter, λ | B22: 0.398806263 | C22: 0.1206449891 | D22: veh/sec | F22: Cycle length, C | G22: =B35 -> 61.37785089 | I22: =C35 -> 61.37785089
A23: Queue at end of red, QueueRed | B23: 8.959637394 | C23: 3.413195198 | D23: veh | F23: Saturation flow rate, s | G23: =B15 -> 1900 | I23: =C15 -> 1900
A24: Queue service time, gs | B24: 32.10441802 | C24: 11.14299986 | D24: sec | F24: Capacity, c | G24: =(G21/G22)*G23 -> 1113.94667 | I24: =(I21/I22)*I23 -> 476.4954072
A25: Number of extension before max out, n | B25: 3.953227398 | C25: 8.162694444 | F25: Arrival rate, v | G25: =B2 -> 1050 | I25: =C2 -> 400
A26: ProbSubjectPhaseCalled, pv | B26: 0.9999999835 | C26: 0.9989152334 | F26: Degree of saturation | G26: =G25/G24 -> 0.9425944957 | I26: =I25/I24 -> 0.8394624459
A27: Maximum allowable headway, MAH | B27: 3.452380952 | C27: 3.452380952 | D27: sec | F27: Queue at end of green | G27: =QueueAtEndOfGreen(B23,B15,B20,B11,B24,B29,B6) -> 0 | I27: =QueueAtEndOfGreen(C23,C15,C20,C11,C24,C29,C6) -> 0
A28: ProbGreenExtension, pge | B28: 0.6469415841 | C28: 0.2850516514 | F28: Uniform delay, sec/veh | G28: =UniformDelay(B2,B37,B24,B23,G27,B29,G22) -> 14.38826976 | I28: =UniformDelay(C2,C37,C24,C23,I27,C29,I22) -> 14.29590296
A29: Green extension, ge | B29: 1.880662317 | C29: 2.249770691 | D29: sec
A30: Effective change interval, Y + Rc | B30: 5 | C30: 5 | D30: sec | F30: Time calculations | G30: Y-axis | H30: X-axis | I30: Y-axis | J30: X-axis
A31: Average green interval duration, Green | B31: 35.98507974 | C31: 15.37607299 | D31: sec | F31: Red and Phase Duration
A32: Phase duration, Dp | B32: 40.98508033 | C32: 20.39277055 | D32: sec | F32: Red display | G32: 3 | H32: 0 | I32: 3
G33: 3 | H33: =H32+B39-B14 -> 20.39277115 | I33: 3
A34: Final values | B34: Phase 2 | C34: Phase 4 | F34: Green display | G34: 3 | H34: =H33 -> 20.39277115 | I34: 3
A35: Cycle length, C | B35: 61.37785089 | C35: 61.37785089 | D35: sec | G35: 3 | H35: =H34+B38 -> 56.37785089 | I35: 3
A36: Effective green, g | B36: 35.98508033 | C36: 15.39277055 | D36: sec | F36: Yellow display | G36: 3 | H36: =H35 -> 56.37785089
A37: Effective red, r | B37: 25.39277055 | C37: 45.98508033 | D37: sec | G37: 3 | H37: =H36+B13 -> 59.37785089
A38: Displayed green, G | B38: 35.98507974 | C38: 15.37607299 | D38: sec | F38: Red clearance display | G38: 3 | H38: =H37 -> 59.37785089
A39: Displayed red, R | B39: 22.39277115 | C39: 43.0017779 | D39: sec | G39: 3 | H39: =H38+B14 -> 61.37785089
A40: Displayed yellow, Y | B40: 3 | C40: 3 | D40: sec | F40: Cycle length | G40: 4 | H40: 0
G41: 4 | H41: =B35 -> 61.37785089
F42: Phase duration | G42: 3.2 | H42: =H34 -> 20.39277115
A43: Intermediate values/iteration number | B43: Green2 | C43: Green4 | D43: Cycle | G43: 3.2 | H43: =H39 -> 61.37785089
A44: 1 | B44: 50 | C44: 19.52137547 | D44: 79.52166723
A45: 2 | B45: 42.83192531 | C45: 18.84917792 | D45: 71.68384507 | F45: Effective times
A46: 3 | B46: 40.58524354 | C46: 16.92932363 | D46: 67.52045145 | F46: Effective red1 | G46: 2 | H46: 0
A47: 4 | B47: 38.37754672 | C47: 16.48638306 | D47: 64.87303258 | G47: 2 | H47: =H46+B37 -> 25.39277055
A48: 5 | B48: 37.49037226 | C48: 15.92002177 | D48: 63.4221926 | F48: Effective green | G48: 2 | H48: =H47 -> 25.39277055
A49: 6 | B49: 36.77964058 | C49: 15.73003435 | D49: 62.52337378 | G49: 2 | H49: =H48+B36 -> 61.37785089
A50: 7 | B50: 36.45383853 | C50: 15.55190681 | D50: 62.02071294 | F50: Effective red2 | G50: 2 | H50: =H49 -> 61.37785089
A51: 8 | B51: 36.22004482 | C51: 15.47925019 | D51: 61.71504934 | G51: 2 | H51: =H50+B13+B14-2 -> 64.37785089
A52: 9 | B52: 36.1038242 | C52: 15.4215834 | D52: 61.54164606
A53: 10 | B53: 36.0259186 | C53: 15.39506872 | D53: 61.43751356 | F53: Phase duration components
A54: 11 | B54: 35.98507974 | C54: 15.37607299 | D54: 61.37785089 | F54: Lost time, l1 | G54: 1 | H54: =B39 -> 22.39277115
E55: 5 | G55: 1 | H55: =H54+B6 -> 24.39277115
F56: Green service time, gs | G56: 1 | H56: =H55 -> 24.39277115
G57: 1 | H57: =H56+B24 -> 56.49718917
F58: Green extension time, ge | G58: 1 | H58: =H57 -> 56.49718917
G59: 1 | H59: =H58+B29 -> 58.37785148
F60: Y+Rc | G60: 1 | H60: =H59 -> 58.37785148
G61: 1 | H61: =H60+B13+B14 -> 63.37785148

Sheet problem 69
A1: Input variables | B1: Phase 2 | C1: Phase 4 | F1: Queue Accumulation Polygon (QAP)
A2: Arrival rate, v | B2: 875 | C2: 650 | D2: veh/hr
A3: Proportion vehicles arriving on green, Pgreen | B3: 0.5 | C3: 0.5 | G3: Phase 2 | I3: Phase 4
A4: Headway of bunched vehicles, Δ | B4: 1.5 | C4: 1.5 | D4: veh/sec | F4: Points on QAP | G4: Queue | H4: Time | I4: Queue | J4: Time
A5: Bunching factor, b | B5: 0.6 | C5: 0.6 | F5: Origin | G5: 0 | H5: 0 | I5: 0 | J5: =B37 -> 36.94966445
A6: Lost time, l1 | B6: 2 | C6: 2 | D6: sec | F6: Maximum queue | G6: =B23 -> 8.794054407 | H6: =B37 -> 36.94966445 | I6: =C23 -> 6.532726131 | J6: =J5+C37 -> 82.28689517
A7: Passage time, PT | B7: 2.5 | C7: 2.5 | D7: sec | F7: Queue at end of green | G7: =G27 -> 0 | H7: =H6+B24+B29 -> 70.28689517 | I7: =I27 -> 0 | J7: =J6+C24+C29 -> 107.2365596
A8: Detection zone length, Lds | B8: 22 | C8: 22 | D8: feet
A9: Vehicle length, Lv | B9: 20 | C9: 20 | D9: feet | F9: Display indications | G9: Queue | H9: Time | I9: Queue | J9: Time
A10: Speed, Sa | B10: 30 | C10: 30 | D10: mi/hr | F10: Red start | G10: 0.2 | H10: 0 | I10: 0.2 | J10: =J5 -> 36.94966445
A11: Maximum green, Gmax | B11: 50 | C11: 50 | D11: sec | F11: Red end | G11: 0.2 | H11: =B39-B14 -> 31.94966526 | I11: 0.2 | J11: =J10+C39 -> 79.28695222
A12: Minimum green, Gmin | B12: 5 | C12: 5 | D12: sec | F12: Green start | G12: 0.2 | H12: =H11 -> 31.94966526 | I12: 0.2 | J12: =J11 -> 79.28695222
A13: Yellow time, Y | B13: 3 | C13: 3 | D13: sec | F13: Green end | G13: 0.2 | H13: =H12+B38 -> 67.28689517 | I13: 0.2 | J13: =J12+C38 -> 106.2365596
A14: Red clearance, Rc | B14: 2 | C14: 2 | D14: sec | F14: Yellow start | G14: 0.2 | H14: =H13 -> 67.28689517
A15: Saturation flow rate, s | B15: 1900 | C15: 1900 | D15: veh/hr/green | F15: Yellow end | G15: 0.2 | H15: =H14+B13 -> 70.28689517
F16: Red clear start | G16: 0.2 | H16: =H15 -> 70.28689517
A17: Calculated variables | B17: Phase 2 | C17: Phase 4 | F17: Red clear end | G17: 0.2 | H17: =H16+B14 -> 72.28689517 | S17: 1 | U17: 0
A18: Arrival rate, q | B18: 0.2430555556 | C18: 0.1805555556 | D18: veh/sec
A19: Arrival rate during red, qr | B19: 0.2382539671 | C19: 0.1437277609 | D19: veh/sec
A20: Arrival rate during green, qg | B20: 0.2480546597 | C20: 0.2427582219 | D20: veh/sec | F20: Capacity calculation
A21: Proportion of free vehicles, ϕ | B21: 0.8035225737 | C21: 0.8500160902 | F21: Effective green, g | G21: =B36 -> 35.33723072 | I21: =C36 -> 26.94966445
A22: Flow rate parameter, λ | B22: 0.3073583615 | C22: 0.2104801747 | D22: veh/sec | F22: Cycle length, C | G22: =B35 -> 72.28689517 | I22: =C35 -> 72.28689517
A23: Queue at end of red, QueueRed | B23: 8.794054407 | C23: 6.532726131 | D23: veh | F23: Saturation flow rate, s | G23: =B15 -> 1900 | I23: =C15 -> 1900
A24: Queue service time, gs | B24: 31.43842549 | C24: 22.92027335 | D24: sec | F24: Capacity, c | G24: =(G21/G22)*G23 -> 928.8092706 | I24: =(I21/I22)*I23 -> 708.3491735
A25: Number of extension before max out, n | B25: 4.108175728 | C25: 6.088309847 | F25: Arrival rate, v | G25: =B2 -> 875 | I25: =C2 -> 650
A26: ProbSubjectPhaseCalled, pv | B26: 0.999999977 | C26: 0.9999978829 | F26: Degree of saturation | G26: =G25/G24 -> 0.9420663938 | I26: =I25/I24 -> 0.9176265383
A27: Maximum allowable headway, MAH | B27: 3.452380952 | C27: 3.452380952 | D27: sec | F27: Queue at end of green | G27: =QueueAtEndOfGreen(B23,B15,B20,B11,B24,B29,B6) -> 0 | I27: =QueueAtEndOfGreen(C23,C15,C20,C11,C24,C29,C6) -> 0
A28: ProbGreenExtension, pge | B28: 0.5590530081 | C28: 0.4364152086 | F28: Uniform delay, sec/veh | G28: =UniformDelay(B2,B37,B24,B23,G27,B29,G22) -> 17.1149054 | I28: =UniformDelay(C2,C37,C24,C23,I27,C29,I22) -> 17.08222478
A29: Green extension, ge | B29: 1.898805232 | C29: 2.029391098 | D29: sec
A30: Effective change interval, Y + Rc | B30: 5 | C30: 5 | D30: sec | F30: Time calculations | G30: Y-axis | H30: X-axis | I30: Y-axis | J30: X-axis
A31: Average green interval duration, Green | B31: 35.33722991 | C31: 26.94960739 | D31: sec | F31: Red and Phase Duration
A32: Phase duration, Dp | B32: 40.33723072 | C32: 31.94966445 | D32: sec | F32: Red display | G32: 3 | H32: 0 | I32: 3
G33: 3 | H33: =H32+B39-B14 -> 31.94966526 | I33: 3
A34: Final values | B34: Phase 2 | C34: Phase 4 | F34: Green display | G34: 3 | H34: =H33 -> 31.94966526 | I34: 3
A35: Cycle length, C | B35: 72.28689517 | C35: 72.28689517 | D35: sec | G35: 3 | H35: =H34+B38 -> 67.28689517 | I35: 3
A36: Effective green, g | B36: 35.33723072 | C36: 26.94966445 | D36: sec | F36: Yellow display | G36: 3 | H36: =H35 -> 67.28689517
A37: Effective red, r | B37: 36.94966445 | C37: 45.33723072 | D37: sec | G37: 3 | H37: =H36+B13 -> 70.28689517
A38: Displayed green, G | B38: 35.33722991 | C38: 26.94960739 | D38: sec | F38: Red clearance display | G38: 3 | H38: =H37 -> 70.28689517
A39: Displayed red, R | B39: 33.94966526 | C39: 42.33728778 | D39: sec | G39: 3 | H39: =H38+B14 -> 72.28689517
A40: Displayed yellow, Y | B40: 3 | C40: 3 | D40: sec | F40: Cycle length | G40: 4 | H40: 0
G41: 4 | H41: =B35 -> 72.28689517
F42: Phase duration | G42: 3.2 | H42: =H34 -> 31.94966526
A43: Intermediate values/iteration number | B43: Green2 | C43: Green4 | D43: Cycle | G43: 3.2 | H43: =H39 -> 72.28689517
A44: 1 | B44: 45.90016483 | C44: 30.59278868 | D44: 86.49295395
A45: 2 | B45: 39.07936604 | C45: 32.54538264 | D45: 81.62475408 | F45: Effective times
A46: 3 | B46: 39.93292486 | C46: 28.60571753 | D46: 78.53865385 | F46: Effective red1 | G46: 2 | H46: 0
A47: 4 | B47: 36.96975539 | C47: 29.30635035 | D47: 76.27612628 | G47: 2 | H47: =H46+B37 -> 36.94966445
A48: 5 | B48: 37.29433581 | C48: 27.605513 | D48: 74.89987798 | F48: Effective green | G48: 2 | H48: =H47 -> 36.94966445
A49: 6 | B49: 35.99363612 | C49: 27.91435466 | D49: 73.9080286 | G49: 2 | H49: =H48+B36 -> 72.28689517
A50: 7 | B50: 36.15292278 | C50: 27.16513521 | D50: 73.31810207 | F50: Effective red2 | G50: 2 | H50: =H49 -> 72.28689517
A51: 8 | B51: 35.57686404 | C51: 27.31681642 | D51: 72.89372978 | G51: 2 | H51: =H50+B13+B14-2 -> 75.28689517
A52: 9 | B52: 35.66246246 | C52: 26.98300837 | D52: 72.64552346
A53: 10 | B53: 35.4057977 | C53: 27.06008858 | D53: 72.46594148 | F53: Phase duration components
A54: 11 | B54: 35.4520823 | C54: 26.91036582 | D54: 72.36250483 | F54: Lost time, l1 | G54: 1 | H54: =B39 -> 33.94966526
A55: 12 | B55: 35.33722991 | C55: 26.94960739 | D55: 72.28689517 | E55: 5 | G55: 1 | H55: =H54+B6 -> 35.94966526
F56: Green service time, gs | G56: 1 | H56: =H55 -> 35.94966526
G57: 1 | H57: =H56+B24 -> 67.38809075
F58: Green extension time, ge | G58: 1 | H58: =H57 -> 67.38809075
G59: 1 | H59: =H58+B29 -> 69.28689598
F60: Y+Rc | G60: 1 | H60: =H59 -> 69.28689598
G61: 1 | H61: =H60+B13+B14 -> 74.28689598

Sheet problem 70
A1: Input variables | B1: Phase 2 | C1: Phase 4 | F1: Queue Accumulation Polygon (QAP)
A2: Arrival rate, v | B2: 200 | C2: 350 | D2: veh/hr
A3: Proportion vehicles arriving on green, Pgreen | B3: 0.5 | C3: 0.5 | G3: Phase 2 | I3: Phase 4
A4: Headway of bunched vehicles, Δ | B4: 1.5 | C4: 1.5 | D4: veh/sec | F4: Points on QAP | G4: Queue | H4: Time | I4: Queue | J4: Time
A5: Bunching factor, b | B5: 0.6 | C5: 0.6 | F5: Origin | G5: 0 | H5: 0 | I5: 0 | J5: =B37 -> 18.89228604
A6: Lost time, l1 | B6: 2 | C6: 2 | D6: sec | F6: Maximum queue | G6: =B23 -> 0.7840783433 | H6: =B37 -> 18.89228604 | I6: =C23 -> 1.372137101 | J6: =J5+C37 -> 38.19261479
A7: Passage time, PT | B7: 2.5 | C7: 2.5 | D7: sec | F7: Queue at end of green | G7: =G27 -> 0 | H7: =H6+B24+B29 -> 26.19261479 | I7: =I27 -> 0 | J7: =J6+C24+C29 -> 45.08490083
A8: Detection zone length, Lds | B8: 22 | C8: 22 | D8: feet
A9: Vehicle length, Lv | B9: 20 | C9: 20 | D9: feet | F9: Display indications | G9: Queue | H9: Time | I9: Queue | J9: Time
A10: Speed, Sa | B10: 30 | C10: 30 | D10: mi/hr | F10: Red start | G10: 0.2 | H10: 0 | I10: 0.2 | J10: =J5 -> 18.89228604
A11: Maximum green, Gmax | B11: 50 | C11: 50 | D11: sec | F11: Red end | G11: 0.2 | H11: =B39-B14 -> 15.83074453 | I11: 0.2 | J11: =J10+C39 -> 35.76434387
A12: Minimum green, Gmin | B12: 5 | C12: 5 | D12: sec | F12: Green start | G12: 0.2 | H12: =H11 -> 15.83074453 | I12: 0.2 | J12: =J11 -> 35.76434387
A13: Yellow time, Y | B13: 3 | C13: 3 | D13: sec | F13: Green end | G13: 0.2 | H13: =H12+B38 -> 23.19261479 | I13: 0.2 | J13: =J12+C38 -> 44.08490083
A14: Red clearance, Rc | B14: 2 | C14: 2 | D14: sec | F14: Yellow start | G14: 0.2 | H14: =H13 -> 23.19261479
A15: Saturation flow rate, s | B15: 1900 | C15: 1900 | D15: veh/hr/green | F15: Yellow end | G15: 0.2 | H15: =H14+B13 -> 26.19261479
F16: Red clear start | G16: 0.2 | H16: =H15 -> 26.19261479
A17: Calculated variables | B17: Phase 2 | C17: Phase 4 | F17: Red clear end | G17: 0.2 | H17: =H16+B14 -> 28.19261479 | S17: 1 | U17: 0
A18: Arrival rate, q | B18: 0.05555555556 | C18: 0.09722222222 | D18: veh/sec
A19: Arrival rate during red, qr | B19: 0.04142491386 | C19: 0.07109842715 | D19: veh/sec
A20: Arrival rate during green, qg | B20: 0.08431747471 | C20: 0.1536943554 | D20: veh/sec | F20: Capacity calculation
A21: Proportion of free vehicles, ϕ | B21: 0.9512294245 | C21: 0.9162188717 | F21: Effective green, g | G21: =B36 -> 9.300328753 | I21: =C36 -> 8.89228604
A22: Flow rate parameter, λ | B22: 0.05765026815 | C22: 0.1042850748 | D22: veh/sec | F22: Cycle length, C | G22: =B35 -> 28.19261479 | I22: =C35 -> 28.19261479
A23: Queue at end of red, QueueRed | B23: 0.7840783433 | C23: 1.372137101 | D23: veh | F23: Saturation flow rate, s | G23: =B15 -> 1900 | I23: =C15 -> 1900
A24: Queue service time, gs | B24: 1.768091389 | C24: 3.667997614 | D24: sec | F24: Capacity, c | G24: =(G21/G22)*G23 -> 626.7820406 | I24: =(I21/I22)*I23 -> 599.2825994
A25: Number of extension before max out, n | B25: 3.898157785 | C25: 6.813578529 | F25: Arrival rate, v | G25: =B2 -> 200 | I25: =C2 -> 350
A26: ProbSubjectPhaseCalled, pv | B26: 0.7915709715 | C26: 0.9357050508 | F26: Degree of saturation | G26: =G25/G24 -> 0.3190901893 | I26: =I25/I24 -> 0.5840316411
A27: Maximum allowable headway, MAH | B27: 3.452380952 | C27: 3.452380952 | D27: sec | F27: Queue at end of green | G27: =QueueAtEndOfGreen(B23,B15,B20,B11,B24,B29,B6) -> 0 | I27: =QueueAtEndOfGreen(C23,C15,C20,C11,C24,C29,C6) -> 0
A28: ProbGreenExtension, pge | B28: 0.150030902 | C28: 0.2525622043 | F28: Uniform delay, sec/veh | G28: =UniformDelay(B2,B37,B24,B23,G27,B29,G22) -> 5.171361069 | I28: =UniformDelay(C2,C37,C24,C23,I27,C29,I22) -> 5.749048351
A29: Green extension, ge | B29: 5.532237364 | C29: 3.224288426 | D29: sec
A30: Effective change interval, Y + Rc | B30: 5 | C30: 5 | D30: sec | F30: Time calculations | G30: Y-axis | H30: X-axis | I30: Y-axis | J30: X-axis
A31: Average green interval duration, Green | B31: 7.361870266 | C31: 8.320556961 | D31: sec | F31: Red and Phase Duration
A32: Phase duration, Dp | B32: 14.30032875 | C32: 13.89228604 | D32: sec | F32: Red display | G32: 3 | H32: 0 | I32: 3
G33: 3 | H33: =H32+B39-B14 -> 15.83074453 | I33: 3
A34: Final values | B34: Phase 2 | C34: Phase 4 | F34: Green display | G34: 3 | H34: =H33 -> 15.83074453 | I34: 3
A35: Cycle length, C | B35: 28.19261479 | C35: 28.19261479 | D35: sec | G35: 3 | H35: =H34+B38 -> 23.19261479 | I35: 3
A36: Effective green, g | B36: 9.300328753 | C36: 8.89228604 | D36: sec | F36: Yellow display | G36: 3 | H36: =H35 -> 23.19261479
A37: Effective red, r | B37: 18.89228604 | C37: 19.30032875 | D37: sec | G37: 3 | H37: =H36+B13 -> 26.19261479
A38: Displayed green, G | B38: 7.361870266 | C38: 8.320556961 | D38: sec | F38: Red clearance display | G38: 3 | H38: =H37 -> 26.19261479
A39: Displayed red, R | B39: 17.83074453 | C39: 16.87205783 | D39: sec | G39: 3 | H39: =H38+B14 -> 28.19261479
A40: Displayed yellow, Y | B40: 3 | C40: 3 | D40: sec | F40: Cycle length | G40: 4 | H40: 0
G41: 4 | H41: =B35 -> 28.19261479
F42: Phase duration | G42: 3.2 | H42: =H34 -> 15.83074453
A43: Intermediate values/iteration number | B43: Green2 | C43: Green4 | D43: Cycle | G43: 3.2 | H43: =H39 -> 28.19261479
A44: 1 | B44: 15.04620575 | C44: 17.99876017 | D44: 43.10443794
A45: 2 | B45: 9.501110606 | C45: 11.08374758 | D45: 31.70866127 | F45: Effective times
A46: 3 | B46: 7.881920061 | C46: 9.101776778 | D46: 29.05555707 | F46: Effective red1 | G46: 2 | H46: 0
A47: 4 | B47: 7.470546209 | C47: 8.523223976 | D47: 28.38779438 | G47: 2 | H47: =H46+B37 -> 18.89228604
A48: 5 | B48: 7.378169823 | C48: 8.362607418 | D48: 28.22682036 | F48: Effective green | G48: 2 | H48: =H47 -> 18.89228604
A49: 6 | B49: 7.361870266 | C49: 8.320556961 | D49: 28.19261479 | G49: 2 | H49: =H48+B36 -> 28.19261479
F50: Effective red2 | G50: 2 | H50: =H49 -> 28.19261479
G51: 2 | H51: =H50+B13+B14-2 -> 31.19261479
F53: Phase duration components
F54: Lost time, l1 | G54: 1 | H54: =B39 -> 17.83074453
E55: 5 | G55: 1 | H55: =H54+B6 -> 19.83074453
F56: Green service time, gs | G56: 1 | H56: =H55 -> 19.83074453
G57: 1 | H57: =H56+B24 -> 21.59883592
F58: Green extension time, ge | G58: 1 | H58: =H57 -> 21.59883592
G59: 1 | H59: =H58+B29 -> 27.13107328
F60: Y+Rc | G60: 1 | H60: =H59 -> 27.13107328
G61: 1 | H61: =H60+B13+B14 -> 32.13107328
